[Event "Late-Titled-Tuesday-Blitz-March-19-2024"]
[Site "Chess.com"]
[Date "2024.03.19"]
[Round "7"]
[White "Felix-Rose"]
[Black "Bala-Afiada"]
[Result "1-0"]
[WhiteElo "2256"]
[BlackElo "1870"]
[TimeControl "180+1"]
[EndTime "15:17:36 PDT"]
[Termination "Felix-Rose won by resignation"]

1. e4 {[%clk 0:02:59.8]} 1... c5 {[%clk 0:03:00.2]} 2. Nf3 {[%clk 0:02:59.9]}
2... Nc6 {[%clk 0:03:00.5]} 3. d4 {[%clk 0:03:00.4]} 3... cxd4 {[%clk
0:03:01.4]} 4. Nxd4 {[%clk 0:03:01.3]} 4... Nf6 {[%clk 0:03:01.8]} 5. Nc3 {[%clk
0:03:01.7]} 5... d6 {[%clk 0:03:02.3]} 6. Bg5 {[%clk 0:03:01.7]} 6... e6 {[%clk
0:03:02.1]} 7. Qd2 {[%clk 0:03:02.2]} 7... Be7 {[%clk 0:03:02.3]} 8. O-O-O
{[%clk 0:03:02.3]} 8... Nxd4 {[%clk 0:03:02.2]} 9. Qxd4 {[%clk 0:03:01.8]} 9...
O-O {[%clk 0:03:02.9]} 10. h4 {[%clk 0:02:56.5]} 10... Qa5 {[%clk 0:02:51.3]}
11. f3 {[%clk 0:02:50.6]} 11... Bd7 {[%clk 0:02:38.6]} 12. g4 {[%clk 0:02:50.1]}
12... Bc6 {[%clk 0:02:37]} 13. Be3 {[%clk 0:02:50.3]} 13... d5 {[%clk
0:02:07.8]} 14. e5 {[%clk 0:02:45.8]} 14... Nd7 {[%clk 0:02:04.1]} 15. Bd3
{[%clk 0:02:33.7]} 15... Bc5 {[%clk 0:02:00.3]} 16. Qf4 {[%clk 0:02:33.9]} 16...
Bxe3+ {[%clk 0:01:51.1]} 17. Qxe3 {[%clk 0:02:33.5]} 17... Qc5 {[%clk
0:01:42.2]} 18. Qxc5 {[%clk 0:02:23]} 18... Nxc5 {[%clk 0:01:42.3]} 19. Ne2
{[%clk 0:02:23.8]} 19... Nxd3+ {[%clk 0:01:35.9]} 20. cxd3 {[%clk 0:02:20.3]}
20... Rac8 {[%clk 0:01:34.2]} 21. Kd2 {[%clk 0:02:19.6]} 21... Bb5 {[%clk
0:01:28.8]} 22. Nd4 {[%clk 0:02:18.5]} 22... Bd7 {[%clk 0:01:07.9]} 23. g5
{[%clk 0:02:14.9]} 23... h6 {[%clk 0:01:06.1]} 24. f4 {[%clk 0:02:10.5]} 24...
Rc7 {[%clk 0:01:03.6]} 25. Rc1 {[%clk 0:02:10.1]} 25... Rfc8 {[%clk 0:01:03.5]}
26. Rxc7 {[%clk 0:02:10.4]} 26... Rxc7 {[%clk 0:01:04.4]} 27. Rg1 {[%clk
0:02:06.9]} 27... hxg5 {[%clk 0:01:04.2]} 28. hxg5 {[%clk 0:01:57.7]} 28... a6
{[%clk 0:01:03.8]} 29. g6 {[%clk 0:01:56.4]} 29... Rc5 {[%clk 0:00:47.2]} 30.
gxf7+ {[%clk 0:01:46]} 30... Kxf7 {[%clk 0:00:48.1]} 31. a3 {[%clk 0:01:39.8]}
31... b5 {[%clk 0:00:42.2]} 32. Re1 {[%clk 0:01:39]} 32... Rc8 {[%clk
0:00:30.6]} 33. Rc1 {[%clk 0:01:35.4]} 33... Rxc1 {[%clk 0:00:30.3]} 34. Kxc1
{[%clk 0:01:36.3]} 34... Kg6 {[%clk 0:00:29.3]} 35. Kd2 {[%clk 0:01:34.1]} 35...
Kh5 {[%clk 0:00:29.8]} 36. Ke3 {[%clk 0:01:34]} 36... Kg4 {[%clk 0:00:29.9]} 37.
Ne2 {[%clk 0:01:33.2]} 37... a5 {[%clk 0:00:26]} 38. b4 {[%clk 0:01:32.5]} 38...
axb4 {[%clk 0:00:25.6]} 39. axb4 {[%clk 0:01:32.6]} 39... g5 {[%clk 0:00:24.1]}
40. fxg5 {[%clk 0:01:32.6]} 40... Kxg5 {[%clk 0:00:24.2]} 41. Kd4 {[%clk
0:01:32.1]} 41... Kf5 {[%clk 0:00:22.9]} 42. Ng3+ {[%clk 0:01:25.9]} 42... Kf4
{[%clk 0:00:22.6]} 43. Nh5+ {[%clk 0:01:25.9]} 43... Kf5 {[%clk 0:00:21.1]} 44.
Ng3+ {[%clk 0:01:19.4]} 44... Kg4 {[%clk 0:00:20.3]} 45. Nf1 {[%clk 0:01:19.5]}
45... Kf5 {[%clk 0:00:19.8]} 46. Ne3+ {[%clk 0:01:19.7]} 46... Kf4 {[%clk
0:00:19.3]} 47. Nc2 {[%clk 0:01:20.6]} 47... Kf5 {[%clk 0:00:18.8]} 48. Na1
{[%clk 0:01:21]} 48... Kf4 {[%clk 0:00:19.1]} 49. Nb3 {[%clk 0:01:21.5]} 49...
Kf5 {[%clk 0:00:18.3]} 50. Nc5 {[%clk 0:01:21.9]} 50... Be8 {[%clk 0:00:17.9]}
51. Nb7 {[%clk 0:01:21]} 51... Kf4 {[%clk 0:00:17.3]} 52. Nd6 {[%clk 0:01:16.1]}
52... Bd7 {[%clk 0:00:17.5]} 53. Nb7 {[%clk 0:00:59.3]} 53... Kf5 {[%clk
0:00:15.6]} 54. Nc5 {[%clk 0:00:54.4]} 54... Be8 {[%clk 0:00:14.1]} 55. Na6
{[%clk 0:00:48.7]} 55... Bd7 {[%clk 0:00:13.3]} 56. Nc7 {[%clk 0:00:46.4]} 56...
Kf4 {[%clk 0:00:11.1]} 57. Kc5 {[%clk 0:00:38.8]} 57... Kxe5 {[%clk 0:00:11.4]}
58. d4+ {[%clk 0:00:39.3]} 58... Ke4 {[%clk 0:00:10.4]} 59. Na8 {[%clk
0:00:13.2]} 59... e5 {[%clk 0:00:09.4]} 60. dxe5 {[%clk 0:00:13.1]} 60... Kxe5
{[%clk 0:00:09.6]} 61. Nb6 {[%clk 0:00:13.6]} 61... Be8 {[%clk 0:00:08.7]} 62.
Nxd5 {[%clk 0:00:12.1]} 62... Ke4 {[%clk 0:00:04.4]} 63. Nf6+ {[%clk 0:00:11.9]}
63... Kd3 {[%clk 0:00:03.5]} 64. Nxe8 {[%clk 0:00:12.8]} 64... Kc3 {[%clk
0:00:04.4]} 65. Nc7 {[%clk 0:00:13.2]} 1-0

[Event "Late-Titled-Tuesday-Blitz-March-19-2024"]
[Site "Chess.com"]
[Date "2024.03.19"]
[Round "7"]
[White "woodhy"]
[Black "Romkachess"]
[Result "0-1"]
[WhiteElo "2516"]
[BlackElo "2701"]
[TimeControl "180+1"]
[EndTime "15:17:40 PDT"]
[Termination "Romkachess won by checkmate"]

1. e4 {[%clk 0:03:00.9]} 1... c5 {[%clk 0:02:57]} 2. Nf3 {[%clk 0:03:00.5]} 2...
d6 {[%clk 0:02:57.2]} 3. d4 {[%clk 0:03:00.2]} 3... cxd4 {[%clk 0:02:58.1]} 4.
Nxd4 {[%clk 0:03:01]} 4... Nf6 {[%clk 0:02:58.2]} 5. f3 {[%clk 0:03:01.1]} 5...
e5 {[%clk 0:02:57.6]} 6. Bb5+ {[%clk 0:03:00]} 6... Bd7 {[%clk 0:02:47.7]} 7.
Bxd7+ {[%clk 0:02:59.2]} 7... Qxd7 {[%clk 0:02:48.6]} 8. Nf5 {[%clk 0:02:59.8]}
8... g6 {[%clk 0:02:49.3]} 9. Ne3 {[%clk 0:02:52.4]} 9... Bg7 {[%clk 0:02:47.6]}
10. Nc3 {[%clk 0:02:52.2]} 10... O-O {[%clk 0:02:46.7]} 11. O-O {[%clk
0:02:51.6]} 11... Nc6 {[%clk 0:02:41.4]} 12. Ned5 {[%clk 0:02:50.1]} 12... Ne7
{[%clk 0:02:38.4]} 13. Be3 {[%clk 0:02:47.7]} 13... b6 {[%clk 0:02:37.3]} 14.
Qd3 {[%clk 0:02:45.4]} 14... Rac8 {[%clk 0:02:37.2]} 15. Rf2 {[%clk 0:02:42.7]}
15... Rfd8 {[%clk 0:02:18.6]} 16. Rd1 {[%clk 0:02:40.3]} 16... Nexd5 {[%clk
0:02:09.3]} 17. Nxd5 {[%clk 0:02:41.2]} 17... Nxd5 {[%clk 0:02:08.7]} 18. Qxd5
{[%clk 0:02:40.7]} 18... Qc6 {[%clk 0:01:59.3]} 19. b3 {[%clk 0:02:17.5]} 19...
Qc3 {[%clk 0:01:44.4]} 20. Re2 {[%clk 0:01:51.2]} 20... Bf6 {[%clk 0:01:33.4]}
21. a4 {[%clk 0:01:46.5]} 21... Rd7 {[%clk 0:01:12]} 22. Rd3 {[%clk 0:01:37.8]}
22... Qb2 {[%clk 0:01:05.5]} 23. Kf2 {[%clk 0:01:32.1]} 23... Rxc2 {[%clk
0:01:00.4]} 24. Rdd2 {[%clk 0:01:26.7]} 24... Rxd2 {[%clk 0:00:57.2]} 25. Rxd2
{[%clk 0:01:27.6]} 25... Qc3 {[%clk 0:00:51.2]} 26. g3 {[%clk 0:01:18.2]} 26...
Qc8 {[%clk 0:00:48.1]} 27. Kg2 {[%clk 0:01:16.7]} 27... Be7 {[%clk 0:00:47.6]}
28. h4 {[%clk 0:01:13.4]} 28... Rc7 {[%clk 0:00:45.2]} 29. h5 {[%clk 0:01:05.6]}
29... Rc3 {[%clk 0:00:45]} 30. hxg6 {[%clk 0:01:03.2]} 30... hxg6 {[%clk
0:00:45.9]} 31. Rd3 {[%clk 0:01:01.8]} 31... Rc2+ {[%clk 0:00:41.2]} 32. Rd2
{[%clk 0:00:50]} 32... Rc3 {[%clk 0:00:40]} 33. Rd3 {[%clk 0:00:46.1]} 33...
Rxd3 {[%clk 0:00:40.4]} 34. Qxd3 {[%clk 0:00:45.5]} 34... Qc6 {[%clk 0:00:41]}
35. Bf2 {[%clk 0:00:37.1]} 35... Bf8 {[%clk 0:00:40.9]} 36. Qa6 {[%clk
0:00:35.2]} 36... Qd7 {[%clk 0:00:16.2]} 37. a5 {[%clk 0:00:30.6]} 37... d5
{[%clk 0:00:16.3]} 38. axb6 {[%clk 0:00:27.8]} 38... axb6 {[%clk 0:00:17.2]} 39.
exd5 {[%clk 0:00:26.2]} 39... Qxd5 {[%clk 0:00:15.3]} 40. Qxb6 {[%clk
0:00:24.2]} 40... e4 {[%clk 0:00:15.8]} 41. fxe4 {[%clk 0:00:23.9]} 41... Qxe4+
{[%clk 0:00:16.2]} 42. Kh2 {[%clk 0:00:24.3]} 42... Qe2 {[%clk 0:00:13.1]} 43.
Qe3 {[%clk 0:00:18.8]} 43... Qb2 {[%clk 0:00:11.8]} 44. Kg2 {[%clk 0:00:18.1]}
44... Bd6 {[%clk 0:00:06.8]} 45. Qd4 {[%clk 0:00:13.6]} 45... Qxd4 {[%clk
0:00:03.9]} 46. Bxd4 {[%clk 0:00:14.5]} 46... f5 {[%clk 0:00:04.6]} 47. Kf3
{[%clk 0:00:14.5]} 47... Kf7 {[%clk 0:00:05.2]} 48. Bc3 {[%clk 0:00:14.8]} 48...
g5 {[%clk 0:00:05.2]} 49. Bd2 {[%clk 0:00:14.2]} 49... Kg6 {[%clk 0:00:05.5]}
50. b4 {[%clk 0:00:14.5]} 50... Bc7 {[%clk 0:00:05.2]} 51. b5 {[%clk 0:00:14.6]}
51... Kf6 {[%clk 0:00:03.1]} 52. Be3 {[%clk 0:00:14.5]} 52... Bb8 {[%clk
0:00:02.8]} 53. b6 {[%clk 0:00:13.3]} 53... Kg6 {[%clk 0:00:03.3]} 54. Bc5
{[%clk 0:00:12.5]} 54... Kf6 {[%clk 0:00:02.5]} 55. Bd4+ {[%clk 0:00:11.2]}
55... Ke6 {[%clk 0:00:02.7]} 56. Be3 {[%clk 0:00:11.2]} 56... g4+ {[%clk
0:00:03.6]} 57. Kf2 {[%clk 0:00:11.2]} 57... Kd5 {[%clk 0:00:04.2]} 58. Bf4
{[%clk 0:00:11.4]} 58... Bxf4 {[%clk 0:00:03.2]} 59. gxf4 {[%clk 0:00:10.8]}
59... Kc6 {[%clk 0:00:03.7]} 60. Kg3 {[%clk 0:00:11.1]} 60... Kxb6 {[%clk
0:00:04.2]} 61. Kh4 {[%clk 0:00:12]} 61... Kc6 {[%clk 0:00:04.8]} 62. Kg5 {[%clk
0:00:12.6]} 62... g3 {[%clk 0:00:04.9]} 63. Kxf5 {[%clk 0:00:13.5]} 63... g2
{[%clk 0:00:05.8]} 64. Ke6 {[%clk 0:00:14.2]} 64... g1=Q {[%clk 0:00:06.7]} 65.
f5 {[%clk 0:00:15.1]} 65... Qe3+ {[%clk 0:00:06.6]} 66. Kf7 {[%clk 0:00:16]}
66... Kd7 {[%clk 0:00:07.1]} 67. f6 {[%clk 0:00:16.9]} 67... Qe6+ {[%clk
0:00:07.4]} 68. Kg6 {[%clk 0:00:16.5]} 68... Qg4+ {[%clk 0:00:07.7]} 69. Kf7
{[%clk 0:00:16.5]} 69... Kd8 {[%clk 0:00:07]} 70. Kf8 {[%clk 0:00:15.9]} 70...
Qf5 {[%clk 0:00:03.8]} 71. f7 {[%clk 0:00:13.5]} 71... Kd7 {[%clk 0:00:04.1]}
72. Kg7 {[%clk 0:00:12.6]} 72... Qg5+ {[%clk 0:00:04.5]} 73. Kh8 {[%clk
0:00:12.5]} 73... Qh6+ {[%clk 0:00:04.3]} 74. Kg8 {[%clk 0:00:12.6]} 74... Ke7
{[%clk 0:00:04.7]} 75. f8=Q+ {[%clk 0:00:11.6]} 75... Qxf8+ {[%clk 0:00:05.4]}
76. Kh7 {[%clk 0:00:12.1]} 76... Qf3 {[%clk 0:00:05.9]} 77. Kh6 {[%clk
0:00:12.3]} 77... Qg2 {[%clk 0:00:06.8]} 78. Kh5 {[%clk 0:00:12.6]} 78... Kf6
{[%clk 0:00:07.7]} 79. Kh4 {[%clk 0:00:13.4]} 79... Kf5 {[%clk 0:00:08.1]} 80.
Kh5 {[%clk 0:00:13.9]} 80... Qg5# {[%clk 0:00:08.7]} 0-1

[Event "Late-Titled-Tuesday-Blitz-March-19-2024"]
[Site "Chess.com"]
[Date "2024.03.19"]
[Round "7"]
[White "Hikaru"]
[Black "Mikhail_Bryakin"]
[Result "1-0"]
[WhiteElo "3251"]
[BlackElo "2714"]
[TimeControl "180+1"]
[EndTime "15:17:47 PDT"]
[Termination "Hikaru won by resignation"]

1. b3 {[%clk 0:03:00.9]} 1... d5 {[%clk 0:02:58.6]} 2. Bb2 {[%clk 0:03:00.8]}
2... Nf6 {[%clk 0:02:56.1]} 3. Nf3 {[%clk 0:02:59.8]} 3... g6 {[%clk 0:02:50.4]}
4. Bxf6 {[%clk 0:02:59.1]} 4... exf6 {[%clk 0:02:50.4]} 5. e3 {[%clk 0:02:59.8]}
5... Bg7 {[%clk 0:02:49.9]} 6. g3 {[%clk 0:02:59.1]} 6... O-O {[%clk 0:02:48.8]}
7. Bg2 {[%clk 0:02:58.7]} 7... Bg4 {[%clk 0:02:46.4]} 8. h3 {[%clk 0:02:52.3]}
8... Bxf3 {[%clk 0:02:45.4]} 9. Bxf3 {[%clk 0:02:52.2]} 9... c6 {[%clk 0:02:44]}
10. O-O {[%clk 0:02:49.6]} 10... f5 {[%clk 0:02:42]} 11. d4 {[%clk 0:02:49.3]}
11... Nd7 {[%clk 0:02:35.9]} 12. Nd2 {[%clk 0:02:47.9]} 12... Nf6 {[%clk
0:02:31.2]} 13. c4 {[%clk 0:02:47.3]} 13... Ne4 {[%clk 0:02:30.6]} 14. Rc1
{[%clk 0:02:47.1]} 14... Qd6 {[%clk 0:02:29.8]} 15. Bg2 {[%clk 0:02:44]} 15...
a5 {[%clk 0:02:18.9]} 16. Nf3 {[%clk 0:02:35.5]} 16... Rfd8 {[%clk 0:02:16.1]}
17. Rc2 {[%clk 0:02:34.5]} 17... a4 {[%clk 0:02:12.8]} 18. c5 {[%clk 0:02:34.6]}
18... Qc7 {[%clk 0:02:09.1]} 19. b4 {[%clk 0:02:34.9]} 19... a3 {[%clk
0:02:02.1]} 20. Ne1 {[%clk 0:02:32.7]} 20... Ra4 {[%clk 0:02:00.4]} 21. Nd3
{[%clk 0:02:32.8]} 21... Rda8 {[%clk 0:02:00.4]} 22. Rc1 {[%clk 0:02:32]} 22...
h5 {[%clk 0:01:58.5]} 23. h4 {[%clk 0:02:31.9]} 23... Bf6 {[%clk 0:01:55]} 24.
Qe2 {[%clk 0:02:18.4]} 24... Kg7 {[%clk 0:01:54.5]} 25. Rc2 {[%clk 0:02:17.2]}
25... Rh8 {[%clk 0:01:51.6]} 26. Qf3 {[%clk 0:02:15]} 26... Qd7 {[%clk
0:01:45.8]} 27. Bh3 {[%clk 0:02:14.7]} 27... Qc7 {[%clk 0:01:38.9]} 28. Rb1
{[%clk 0:02:14.3]} 28... Rb8 {[%clk 0:01:31.8]} 29. b5 {[%clk 0:02:13.9]} 29...
Rc4 {[%clk 0:01:28.4]} 30. b6 {[%clk 0:02:02.8]} 30... Qe7 {[%clk 0:01:21.8]}
31. Rbc1 {[%clk 0:02:02.7]} 31... Ra4 {[%clk 0:01:12.1]} 32. Re2 {[%clk
0:01:56.3]} 32... Rba8 {[%clk 0:01:12.2]} 33. Ree1 {[%clk 0:01:53.9]} 33... Rh8
{[%clk 0:01:05.6]} 34. Rc2 {[%clk 0:01:50.6]} 34... Rha8 {[%clk 0:01:05.4]} 35.
Rb1 {[%clk 0:01:50.6]} 35... Rh8 {[%clk 0:01:04.6]} 36. Qf4 {[%clk 0:01:45.9]}
36... Rha8 {[%clk 0:01:01.5]} 37. Qc7 {[%clk 0:01:36.5]} 37... Rd8 {[%clk
0:00:50]} 38. Qxe7 {[%clk 0:01:28.1]} 38... Bxe7 {[%clk 0:00:50.9]} 39. Bf1
{[%clk 0:01:26]} 39... Nf6 {[%clk 0:00:38.8]} 40. Nf4 {[%clk 0:01:22.6]} 40...
Nd7 {[%clk 0:00:37.7]} 41. Rb3 {[%clk 0:01:22.2]} 41... Rda8 {[%clk 0:00:37.4]}
42. Rcc3 {[%clk 0:01:22.4]} 42... Kf8 {[%clk 0:00:32.2]} 43. Nd3 {[%clk
0:01:18.6]} 43... Nf6 {[%clk 0:00:31.7]} 44. Ne1 {[%clk 0:01:16.5]} 44... Ne4
{[%clk 0:00:31.2]} 45. Rc2 {[%clk 0:01:17.2]} 45... Bf6 {[%clk 0:00:28.1]} 46.
Be2 {[%clk 0:01:10.8]} 46... Bg7 {[%clk 0:00:28.1]} 47. Nd3 {[%clk 0:01:02.9]}
47... Ke7 {[%clk 0:00:28.4]} 48. Kf1 {[%clk 0:01:03.1]} 48... Kd7 {[%clk
0:00:28.9]} 49. Ke1 {[%clk 0:01:03.7]} 49... Bf6 {[%clk 0:00:29.3]} 50. Bf3
{[%clk 0:01:03.7]} 50... Bg7 {[%clk 0:00:28.5]} 51. Kd1 {[%clk 0:01:02.2]} 51...
Bh8 {[%clk 0:00:28.1]} 52. Kc1 {[%clk 0:01:02.1]} 52... Bg7 {[%clk 0:00:28.7]}
53. Be2 {[%clk 0:01:02]} 53... Bh8 {[%clk 0:00:29]} 54. Kb1 {[%clk 0:01:02.6]}
54... Bg7 {[%clk 0:00:29.5]} 55. Bd1 {[%clk 0:01:02.4]} 55... Bh8 {[%clk
0:00:29.4]} 56. Ne1 {[%clk 0:01:00]} 56... Bg7 {[%clk 0:00:28.7]} 57. Bf3 {[%clk
0:00:57.9]} 57... Bh8 {[%clk 0:00:28.2]} 58. Kc1 {[%clk 0:00:54.9]} 58... Bg7
{[%clk 0:00:28.3]} 59. Kd1 {[%clk 0:00:55.3]} 59... Bh8 {[%clk 0:00:28.7]} 60.
Ke2 {[%clk 0:00:55.7]} 60... Bg7 {[%clk 0:00:29.3]} 61. Bxe4 {[%clk 0:00:53.5]}
61... fxe4 {[%clk 0:00:29.3]} 62. Rcc3 {[%clk 0:00:53.9]} 62... f5 {[%clk
0:00:17.7]} 63. Nc2 {[%clk 0:00:53.9]} 63... Bf6 {[%clk 0:00:15.1]} 64. Rxa3
{[%clk 0:00:53.6]} 64... Kc8 {[%clk 0:00:13.2]} 65. Rxa4 {[%clk 0:00:52.2]}
65... Rxa4 {[%clk 0:00:14.1]} 66. a3 {[%clk 0:00:48.6]} 66... Kd7 {[%clk
0:00:14.4]} 67. Rb3 {[%clk 0:00:46.1]} 67... Kc8 {[%clk 0:00:14.1]} 68. Rb1
{[%clk 0:00:46.4]} 68... Be7 {[%clk 0:00:14.4]} 69. Kd2 {[%clk 0:00:46.7]} 69...
Bf6 {[%clk 0:00:14.8]} 70. Kc3 {[%clk 0:00:46.8]} 70... Ra6 {[%clk 0:00:13.1]}
71. Kb3 {[%clk 0:00:46.2]} 71... Ra5 {[%clk 0:00:13.3]} 72. a4 {[%clk
0:00:46.4]} 72... Kd7 {[%clk 0:00:12.8]} 73. Kb4 {[%clk 0:00:46.5]} 73... Ra6
{[%clk 0:00:13.3]} 74. a5 {[%clk 0:00:47.1]} 74... Be7 {[%clk 0:00:11]} 75. Ka4
{[%clk 0:00:47.2]} 75... Ra8 {[%clk 0:00:05.6]} 76. Nb4 {[%clk 0:00:47.2]} 76...
Kc8 {[%clk 0:00:04.1]} 77. a6 {[%clk 0:00:29.7]} 77... Kd7 {[%clk 0:00:02.6]}
78. a7 {[%clk 0:00:27.2]} 78... Bd8 {[%clk 0:00:01.5]} 79. Kb3 {[%clk
0:00:22.9]} 79... Be7 {[%clk 0:00:01.8]} 80. Na2 {[%clk 0:00:22.5]} 80... Bd8
{[%clk 0:00:02.4]} 81. Nc1 {[%clk 0:00:22.8]} 81... Bf6 {[%clk 0:00:03.1]} 82.
Kc2 {[%clk 0:00:23]} 82... Be7 {[%clk 0:00:03.6]} 83. Nb3 {[%clk 0:00:23.6]}
83... Bf8 {[%clk 0:00:03.2]} 84. Na5 {[%clk 0:00:23.9]} 84... Kc8 {[%clk
0:00:03.7]} 85. Nxc6 {[%clk 0:00:23.5]} 85... Bg7 {[%clk 0:00:03.7]} 86. Ne7+
{[%clk 0:00:23]} 1-0

[Event "Late-Titled-Tuesday-Blitz-March-19-2024"]
[Site "Chess.com"]
[Date "2024.03.19"]
[Round "7"]
[White "KetiTsatsalashvili"]
[Black "ViktoriyaTarasova"]
[Result "1/2-1/2"]
[WhiteElo "2466"]
[BlackElo "2336"]
[TimeControl "180+1"]
[EndTime "15:17:54 PDT"]
[Termination "Game drawn by stalemate"]

1. d4 {[%clk 0:03:00.9]} 1... Nf6 {[%clk 0:02:59.6]} 2. Nf3 {[%clk 0:03:00.2]}
2... e6 {[%clk 0:02:59.6]} 3. e3 {[%clk 0:02:57.7]} 3... b6 {[%clk 0:02:59.4]}
4. Bd3 {[%clk 0:02:58.2]} 4... Bb7 {[%clk 0:03:00.1]} 5. O-O {[%clk 0:02:58.4]}
5... d5 {[%clk 0:03:00.6]} 6. Ne5 {[%clk 0:02:57.5]} 6... Bd6 {[%clk 0:02:59.2]}
7. Nd2 {[%clk 0:02:56.1]} 7... O-O {[%clk 0:02:59.2]} 8. f4 {[%clk 0:02:55.4]}
8... Ne4 {[%clk 0:02:57.3]} 9. Nxe4 {[%clk 0:02:55.6]} 9... dxe4 {[%clk
0:02:57.3]} 10. Bc4 {[%clk 0:02:55.9]} 10... Qe7 {[%clk 0:02:35.4]} 11. f5
{[%clk 0:02:36.8]} 11... Bxe5 {[%clk 0:02:12.6]} 12. dxe5 {[%clk 0:02:35.3]}
12... exf5 {[%clk 0:02:10.6]} 13. Rxf5 {[%clk 0:02:31.8]} 13... Nd7 {[%clk
0:02:04.8]} 14. Qd4 {[%clk 0:01:38]} 14... Rad8 {[%clk 0:02:01.7]} 15. b3 {[%clk
0:01:16.5]} 15... Nc5 {[%clk 0:01:42.1]} 16. Qc3 {[%clk 0:01:15.2]} 16... Rd1+
{[%clk 0:01:34.2]} 17. Rf1 {[%clk 0:01:15.2]} 17... Rxf1+ {[%clk 0:01:27.4]} 18.
Kxf1 {[%clk 0:01:16.1]} 18... Ne6 {[%clk 0:00:53.6]} 19. Bb2 {[%clk 0:01:09.3]}
19... Rd8 {[%clk 0:00:53.2]} 20. Kg1 {[%clk 0:01:05]} 20... c5 {[%clk
0:00:40.8]} 21. Rf1 {[%clk 0:00:59.9]} 21... h6 {[%clk 0:00:32.7]} 22. Qe1
{[%clk 0:00:55.9]} 22... Bd5 {[%clk 0:00:29.9]} 23. Bxd5 {[%clk 0:00:52]} 23...
Rxd5 {[%clk 0:00:29.5]} 24. Qe2 {[%clk 0:00:45.1]} 24... Qd7 {[%clk 0:00:17.6]}
25. Bc3 {[%clk 0:00:45.1]} 25... b5 {[%clk 0:00:12.8]} 26. Qg4 {[%clk
0:00:37.1]} 26... b4 {[%clk 0:00:11.4]} 27. Bb2 {[%clk 0:00:28.6]} 27... Ng5
{[%clk 0:00:11.2]} 28. Qxd7 {[%clk 0:00:11.7]} 28... Rxd7 {[%clk 0:00:11.1]} 29.
h4 {[%clk 0:00:12.4]} 29... Ne6 {[%clk 0:00:10.5]} 30. Rf2 {[%clk 0:00:12.8]}
30... Rd1+ {[%clk 0:00:10.1]} 31. Kh2 {[%clk 0:00:13.1]} 31... Kf8 {[%clk
0:00:10.5]} 32. a3 {[%clk 0:00:12.9]} 32... a5 {[%clk 0:00:10.2]} 33. axb4
{[%clk 0:00:13.8]} 33... axb4 {[%clk 0:00:09.7]} 34. c3 {[%clk 0:00:13.6]} 34...
Ke7 {[%clk 0:00:08.9]} 35. cxb4 {[%clk 0:00:13.7]} 35... cxb4 {[%clk 0:00:09.6]}
36. Rc2 {[%clk 0:00:14.1]} 36... Rd3 {[%clk 0:00:09.7]} 37. Rc4 {[%clk
0:00:11.3]} 37... Rxb3 {[%clk 0:00:09.7]} 38. Bc1 {[%clk 0:00:11.7]} 38... Rb1
{[%clk 0:00:09.4]} 39. Rxb4 {[%clk 0:00:10.6]} 39... Rxb4 {[%clk 0:00:08]} 40.
Ba3 {[%clk 0:00:10.8]} 40... Kd7 {[%clk 0:00:08.6]} 41. Bxb4 {[%clk 0:00:11.2]}
41... Kc6 {[%clk 0:00:09.4]} 42. Kg3 {[%clk 0:00:09.6]} 42... Kd5 {[%clk
0:00:10]} 43. Kf2 {[%clk 0:00:08.9]} 43... Kxe5 {[%clk 0:00:10.1]} 44. Bc3+
{[%clk 0:00:09.6]} 44... Kd5 {[%clk 0:00:10.5]} 45. g4 {[%clk 0:00:08.8]} 45...
g6 {[%clk 0:00:10.9]} 46. Bf6 {[%clk 0:00:08.4]} 46... h5 {[%clk 0:00:10.8]} 47.
gxh5 {[%clk 0:00:08.5]} 47... gxh5 {[%clk 0:00:11.3]} 48. Bh8 {[%clk 0:00:09.1]}
48... Kd6 {[%clk 0:00:11.6]} 49. Bc3 {[%clk 0:00:09.2]} 49... f5 {[%clk
0:00:11.4]} 50. Bf6 {[%clk 0:00:09.5]} 50... Kd5 {[%clk 0:00:11.4]} 51. Bh8
{[%clk 0:00:08.8]} 51... Kc4 {[%clk 0:00:12]} 52. Bb2 {[%clk 0:00:08.6]} 52...
Kd3 {[%clk 0:00:12.5]} 53. Bc1 {[%clk 0:00:09.1]} 53... Kc4 {[%clk 0:00:12.3]}
54. Ba3 {[%clk 0:00:09.1]} 54... Kd5 {[%clk 0:00:12]} 55. Bb4 {[%clk 0:00:09.2]}
55... Ke5 {[%clk 0:00:11.8]} 56. Bc3+ {[%clk 0:00:09.5]} 56... Kd5 {[%clk
0:00:12.5]} 57. Bb4 {[%clk 0:00:10.1]} 57... f4 {[%clk 0:00:12.7]} 58. exf4
{[%clk 0:00:09.9]} 58... Nxf4 {[%clk 0:00:13.4]} 59. Be7 {[%clk 0:00:09]} 59...
Ne6 {[%clk 0:00:13.8]} 60. Bf6 {[%clk 0:00:08.9]} 60... Kd6 {[%clk 0:00:13.5]}
61. Ke3 {[%clk 0:00:09.3]} 61... Kd5 {[%clk 0:00:14]} 62. Be7 {[%clk 0:00:09.3]}
62... Nc7 {[%clk 0:00:14]} 63. Bg5 {[%clk 0:00:09.2]} 63... Ne6 {[%clk 0:00:12]}
64. Bf6 {[%clk 0:00:09.1]} 64... Nc5 {[%clk 0:00:12]} 65. Bg7 {[%clk 0:00:08.6]}
65... Nd7 {[%clk 0:00:12.6]} 66. Bh6 {[%clk 0:00:07.9]} 66... Ne5 {[%clk
0:00:11.8]} 67. Bf4 {[%clk 0:00:08]} 67... Ng6 {[%clk 0:00:11.9]} 68. Bg5 {[%clk
0:00:08.1]} 68... Ke5 {[%clk 0:00:12.5]} 69. Bd8 {[%clk 0:00:07.6]} 69... Kf5
{[%clk 0:00:13.1]} 70. Kd4 {[%clk 0:00:05.5]} 70... Ne5 {[%clk 0:00:13.2]} 71.
Ke3 {[%clk 0:00:05.5]} 71... Nf3 {[%clk 0:00:13.3]} 72. Be7 {[%clk 0:00:05]}
72... Ne5 {[%clk 0:00:12.7]} 73. Bg5 {[%clk 0:00:04.5]} 73... Ng4+ {[%clk
0:00:13.3]} 74. Ke2 {[%clk 0:00:03.2]} 74... Ke5 {[%clk 0:00:13]} 75. Bd8 {[%clk
0:00:02.8]} 75... Kf5 {[%clk 0:00:13.6]} 76. Be7 {[%clk 0:00:02.5]} 76... Ne5
{[%clk 0:00:14.1]} 77. Bd8 {[%clk 0:00:02.7]} 77... Ng6 {[%clk 0:00:14.7]} 78.
Ke3 {[%clk 0:00:03]} 78... Kg4 {[%clk 0:00:14.3]} 79. Kxe4 {[%clk 0:00:02.1]}
79... Nxh4 {[%clk 0:00:15.1]} 80. Bxh4 {[%clk 0:00:02.3]} 80... Kxh4 {[%clk
0:00:15.6]} 81. Kf3 {[%clk 0:00:03.1]} 81... Kh3 {[%clk 0:00:15.7]} 82. Kf2
{[%clk 0:00:03.8]} 82... Kh2 {[%clk 0:00:16.2]} 83. Kf1 {[%clk 0:00:04.1]} 83...
h4 {[%clk 0:00:16.8]} 84. Kf2 {[%clk 0:00:04.7]} 84... h3 {[%clk 0:00:17.5]} 85.
Kf1 {[%clk 0:00:05.4]} 85... Kh1 {[%clk 0:00:18.2]} 86. Kf2 {[%clk 0:00:05.8]}
86... h2 {[%clk 0:00:18.9]} 87. Kf1 {[%clk 0:00:05.8]} 1/2-1/2